fUSD/lending_fUSD_20240324
["ID","MTS","AMOUNT","RATE_DAILY","PERIOD"]
[320348442,1711314653175,-500.0,0.00019178,2]
[320348443,1711314653185,-500.0,0.00019178,2]
[320348444,1711314653195,-500.0,0.00019178,2]
[320348446,1711314653211,-500.0,0.00019178,2]
[320348448,1711314653222,-500.0,0.00019178,2]
[320348450,1711314653231,-688.14,0.00019178,2]
[320348452,1711314653241,-500.0,0.00019178,2]
[320348454,1711314653250,-501.73814503,0.00019178,2]
[320348456,1711314653259,-500.0,0.00019178,2]
[320348458,1711314653269,-500.0,0.00019178,2]
[320348460,1711314653278,-500.46343012,0.00019178,2]
[320348462,1711314653287,-500.0,0.00019178,2]
[320348465,1711314653297,-500.0,0.00019178,2]
[320348467,1711314653308,-500.0,0.00019178,2]
[320348469,1711314653317,-1647.81,0.00019178,2]
[320348471,1711314653326,-500.0,0.00019178,2]
[320348473,1711314653336,-500.0,0.00019178,2]
[320348475,1711314653345,-910.96,0.00019178,2]
[320348477,1711314653354,-500.0,0.00019178,2]
[320348479,1711314653364,-500.0,0.00019178,2]
[320348481,1711314653374,-951.58,0.00019178,2]
[320348483,1711314653384,-500.0,0.00019178,2]
[320348485,1711314653395,-500.0,0.00019178,2]
[320348487,1711314653406,-500.0,0.00019178,2]
[320348489,1711314653417,-500.0,0.00019178,2]
[320348491,1711314653428,-500.0,0.00019178,2]
[320348493,1711314653439,-500.0,0.00019178,2]
[320348495,1711314653450,-500.0,0.00019178,2]
[320348497,1711314653461,-500.0,0.00019178,2]
[320348499,1711314653475,-500.0,0.00019178,2]
[320348501,1711314653486,-500.0,0.00019178,2]
[320348503,1711314653497,-500.0,0.00019178,2]
[320348505,1711314653508,-500.0,0.00019178,2]
[320348507,1711314653519,-500.0,0.00019178,2]
[320348509,1711314653530,-500.0,0.00019178,2]
[320348512,1711314653540,-500.0,0.00019178,2]
[320348514,1711314653550,-654.25,0.00019178,2]
[320348516,1711314653560,-500.0,0.00019178,2]
[320348518,1711314653570,-500.0,0.00019178,2]
[320348520,1711314653579,-500.0,0.00019178,2]
[320348522,1711314653589,-564.95,0.00019178,2]
[320348524,1711314653599,-500.0,0.00019178,2]
[320348526,1711314653608,-500.0,0.00019178,2]
[320348528,1711314653618,-500.0,0.00019178,2]
[320348530,1711314653627,-500.0,0.00019178,2]
[320348532,1711314653636,-2134.53,0.00019178,2]
[320348534,1711314653646,-2344.06,0.00019178,2]
[320348536,1711314653655,-500.0,0.00019178,2]
[320348538,1711314653665,-500.0,0.00019178,2]
[320348540,1711314653674,-500.0,0.00019178,2]
[320348542,1711314653683,-275.05815017,0.00019178,2]
[320348544,1711314653692,-1070.99,0.00019178,2]
[320348546,1711314653701,-500.0,0.00019178,2]
[320348548,1711314653710,-500.0,0.00019178,2]
[320348550,1711314653721,-559.33,0.00019178,2]
[320348552,1711314653730,-891.39,0.00019178,2]
[320348554,1711314653739,-500.0,0.00019178,2]
[320348556,1711314653749,-500.0,0.00019178,2]
[320348558,1711314653758,-500.0,0.00019178,2]
[320348560,1711314653767,-500.0,0.00019178,2]
[320348562,1711314653777,-500.0,0.00019178,2]
[320348564,1711314653787,-500.0,0.00019178,2]
[320348566,1711314653797,-500.0,0.00019178,2]
[320348568,1711314653807,-500.0,0.00019178,2]
[320348570,1711314653816,-500.0,0.00019178,2]
[320348572,1711314653826,-592.79,0.00019178,2]
[320348574,1711314653836,-1286.99,0.00019178,2]
[320348576,1711314653845,-768.73,0.00019178,2]
[320348578,1711314653854,-615.12,0.00019178,2]
[320348580,1711314653864,-500.0,0.00019178,2]
[320348582,1711314653874,-500.0,0.00019178,2]
[320348584,1711314653883,-1648.35,0.00019178,2]
[320348586,1711314653893,-500.0,0.00019178,2]
[320348588,1711314653903,-648.05,0.00019178,2]
[320348590,1711314653913,-1222.0,0.00019178,2]
[320348592,1711314653922,-151.0,0.00019178,2]
[320348594,1711314653932,-500.0,0.00019178,2]
[320348596,1711314653942,-500.0,0.00019178,2]
[320348598,1711314653951,-500.0,0.00019178,2]
[320348601,1711314653961,-500.0,0.00019178,2]
[320348603,1711314653973,-506.7982527,0.00019178,2]
[320348605,1711314653983,-500.0,0.00019178,2]
[320348607,1711314653992,-500.0,0.00019178,2]
[320348609,1711314654001,-431.89422889,0.00019178,2]
[320348611,1711314654010,-1531.48,0.00019178,2]
[320348613,1711314654019,-500.0,0.00019178,2]
[320348615,1711314654029,-500.0,0.00019178,2]
[320348617,1711314654038,-500.0,0.00019178,2]
[320348619,1711314654047,-500.0,0.00019178,2]
[320348621,1711314654056,-500.0,0.00019178,2]
[320348623,1711314654065,-151.0,0.00019178,2]
[320348625,1711314654074,-500.0,0.00019178,2]
[320348627,1711314654083,-500.0,0.00019178,2]
[320348629,1711314654092,-2403.41,0.00019178,2]
[320348631,1711314654102,-584.82894124,0.00019178,2]
[320348633,1711314654111,-500.0,0.00019178,2]
[320348635,1711314654122,-500.0,0.00019178,2]
[320348637,1711314654132,-151.0,0.00019178,2]
[320348639,1711314654142,-500.0,0.00019178,2]
[320348641,1711314654151,-655.03,0.00019178,2]
[320348643,1711314654160,-500.0,0.00019178,2]
[320348645,1711314654170,-533.97,0.00019178,2]
[320348647,1711314654180,-500.0,0.00019178,2]
[320348649,1711314654190,-500.0,0.00019178,2]
[320348651,1711314654200,-500.0,0.00019178,2]
[320348653,1711314654210,-500.0,0.00019178,2]
[320348655,1711314654220,-500.0,0.00019178,2]
[320348657,1711314654229,-500.0,0.00019178,2]
[320348659,1711314654238,-151.0,0.00019178,2]
[320348661,1711314654247,-500.0,0.00019178,2]
[320348663,1711314654256,-151.0,0.00019178,2]
[320348665,1711314654266,-500.0,0.00019178,2]
[320348667,1711314654275,-500.0,0.00019178,2]
[320348669,1711314654284,-500.0,0.00019178,2]
[320348671,1711314654293,-899.31,0.00019178,2]
[320348673,1711314654302,-500.0,0.00019178,2]
[320348675,1711314654312,-150.0,0.00019178,2]
[320348677,1711314654321,-500.0,0.00019178,2]
[320348679,1711314654330,-2177.14,0.00019178,2]
[320348681,1711314654340,-26089.2,0.00019178,2]
[320348683,1711314654349,-500.0,0.00019178,2]
[320348685,1711314654359,-500.0,0.00019178,2]
[320348687,1711314654369,-607.33,0.00019178,2]
[320348689,1711314654378,-500.0,0.00019178,2]
[320348691,1711314654387,-500.0,0.00019178,2]
[320348693,1711314654397,-1355.52,0.00019178,2]
[320348695,1711314654406,-423.77332517,0.00019178,2]
[320348783,1711314655217,-76.22667483,0.00019178,2]
[320348784,1711314655229,-500.0,0.00019178,2]
[320348785,1711314655238,-1963.15,0.00019178,2]
[320348786,1711314655246,-813.2,0.00019178,2]
[320348787,1711314655255,-500.0,0.00019178,2]
[320348788,1711314655264,-3159.1,0.00019178,2]
[320348789,1711314655273,-500.0,0.00019178,2]
[320348790,1711314655282,-500.0,0.00019178,2]
[320348791,1711314655291,-289.69426608,0.00019178,2]
[320348793,1711314655301,-500.0,0.00019178,2]
[320348795,1711314655310,-500.0,0.00019178,2]
[320348797,1711314655319,-1102.84,0.00019178,2]
[320348799,1711314655329,-500.0,0.00019178,2]
[320348801,1711314655338,-361.6333634,0.00019178,2]
[320348806,1711314655372,-734.7966366,0.00019178,2]
[320348808,1711314655381,-500.0,0.00019178,2]
[320348810,1711314655390,-97.69067008,0.00019178,2]
[320348812,1711314655401,-1117.6600003,0.00019178,2]
[320348818,1711314655449,-1477.1159678,0.00018781,2]
[320348820,1711314655458,-1176.47932962,0.00019178,2]
[320348822,1711314655467,-500.0,0.00019178,2]
[320348824,1711314655477,-1577.74,0.00019178,2]
[320348826,1711314655486,-6615.87,0.00019178,2]
[320348828,1711314655495,-500.0,0.00019178,2]
[320348830,1711314655504,-500.0,0.00019178,2]
[320348832,1711314655513,-4768.81,0.00019178,2]
[320348834,1711314655522,-1424.92,0.00019178,2]
[320348836,1711314655531,-500.0,0.00019178,2]
[320348838,1711314655540,-1261.79,0.00019178,2]
[320348840,1711314655549,-500.0,0.00019178,2]
[320348842,1711314655558,-500.0,0.00019178,2]
[320348844,1711314655567,-500.0,0.00019178,2]
[320348846,1711314655576,-500.0,0.00019178,2]
[320348848,1711314655585,-500.0,0.00019178,2]
[320348850,1711314655595,-500.0,0.00019178,2]
[320348852,1711314655604,-500.0,0.00019178,2]
[320348854,1711314655613,-500.0,0.00019178,2]
[320348856,1711314655622,-500.0,0.00019178,2]
[320348858,1711314655631,-3927.28,0.00019178,2]
[320348860,1711314655640,-500.0,0.00019178,2]
[320348862,1711314655649,-500.0,0.00019178,2]
[320348864,1711314655658,-151.0,0.00019178,2]
[320348866,1711314655667,-500.0,0.00019178,2]
[320348868,1711314655677,-500.0,0.00019178,2]
[320348870,1711314655686,-500.0,0.00019178,2]
[320348872,1711314655694,-500.0,0.00019178,2]
[320348874,1711314655704,-500.0,0.00019178,2]
[320348876,1711314655713,-473.93686651,0.00019178,2]
[320348984,1711314656703,-1335.52376794,0.00017678,2]
[320348986,1711314656712,-288.38,0.0001799,3]
[320348988,1711314656721,-1224.22723206,0.00018014,2]
[320349008,1711314656906,-111.29653588,0.00018014,2]
[320349010,1711314656916,-1335.52376794,0.0001823,2]
[320349012,1711314656925,-1335.52376794,0.00018624,2]
[320349014,1711314656934,-1335.52376794,0.00018686,2]
[320349016,1711314656944,-1477.1159678,0.00019022,2]
[320349018,1711314656953,-463.03517208,0.00019075,2]
[320349021,1711314656970,-872.48859586,0.00019075,2]
[320349023,1711314656979,-26.06313349,0.00019178,2]
[320349025,1711314656988,-500.0,0.00019178,2]
[320349027,1711314656997,-500.0,0.00019178,2]
[320349029,1711314657007,-1530.31325722,0.00019178,2]
[320349031,1711314657020,-195.58674278,0.00019178,2]
[320349033,1711314657029,-531.64,0.00019178,2]
[320349035,1711314657040,-575.99,0.00019178,2]
[320349037,1711314657049,-500.0,0.00019178,2]
[320349039,1711314657058,-151.0,0.00019178,2]
[320349041,1711314657068,-645.45254453,0.00019178,2]
[320349043,1711314657077,-500.0,0.00019178,2]
[320349045,1711314657086,-500.0,0.00019178,2]
[320349047,1711314657096,-2799.01,0.00019178,2]
[320349049,1711314657106,-500.0,0.00019178,2]
[320349051,1711314657115,-1011.61,0.00019178,2]
[320349053,1711314657125,-110.87586081,0.00019178,2]
[320349058,1711314657168,-389.12413919,0.00019178,2]
[320349059,1711314657177,-356.39476232,0.00019178,2]
[320349071,1711315078608,2000.0,0.00024959,120]
[320349076,1711315746156,-552.05,0.00014623,2]
[320349077,1711315746176,-76.24561858,0.00015406,2]
[320349091,1711315831534,-13068.84042252,0.00015406,2]
[320349092,1711315831590,-2559.17335098,0.00015406,2]
[320349093,1711315831641,-508.47198714,0.00015406,2]
[320349094,1711315831755,-1337.809923,0.00015406,2]
[320349105,1711315837512,-664.93,0.00015406,2]
[320349106,1711315837643,-24233.8552707,0.00015406,2]
[320349107,1711315837653,-301.59367167,0.00015993,2]
[320349108,1711315837662,-151.14,0.00015994,2]
[320349109,1711315837672,-251.69276982,0.00016,2]
[320349110,1711315837681,-256.26,0.00016496,2]
[320349111,1711315837691,-775.1057048,0.00016544,2]
[320349112,1711315837748,-16.2142952,0.00016544,2]
[320349113,1711315837759,-301.05,0.00016549,2]
[320349114,1711315837769,-250.0,0.00016564,2]
[320349115,1711315837779,-169.46,0.00016572,2]
[320349116,1711315837788,-250.0,0.00016572,2]
[320349117,1711315837798,-1995.14,0.00016591,2]
[320349118,1711315837807,-552.05,0.00016887,2]
[320349119,1711315838111,-2000.0,0.00017,2]
[320349120,1711315838121,-208.68,0.00017307,2]
[320349121,1711315838131,-222.25,0.00017325,2]
[320349122,1711315838141,-222.25,0.00017343,2]
[320349123,1711315838150,-222.25,0.00017361,2]
[320349124,1711315838159,-222.25,0.00017379,2]
[320349125,1711315838168,-222.25,0.00017398,2]
[320349126,1711315838179,-222.25,0.00017416,2]
[320349127,1711315838188,-150.0,0.00017428,2]
[320349128,1711315838197,-171.32521911,0.00017429,2]
[320349129,1711315838207,-155.98,0.00017433,2]
[320349130,1711315838217,-222.25,0.00017434,2]
[320349131,1711315838226,-222.25,0.00017452,2]
[320349132,1711315838235,-222.25,0.00017471,2]
[320349133,1711315838244,-222.25,0.00017489,2]
[320349134,1711315838254,-222.25,0.00017507,2]
[320349135,1711315838265,-222.25,0.00017525,2]
[320349136,1711315838274,-222.25,0.00017544,2]
[320349137,1711315838284,-222.25,0.00017562,2]
[320349138,1711315838293,-222.25,0.0001758,2]
[320349139,1711315838302,-222.25,0.00017598,2]
[320349140,1711315838311,-222.25,0.00017617,2]
[320349141,1711315838320,-222.25,0.00017635,2]
[320349142,1711315838330,-222.25,0.00017653,2]
[320349143,1711315838339,-222.25,0.00017671,2]
[320349144,1711315838349,-2671.9897,0.00017789,2]
[320349145,1711315838358,-1090.7317,0.00017913,2]
[320349146,1711315838368,-601.4358,0.00017913,2]
[320349147,1711315838378,-174.9689904,0.00017962,2]
[320349148,1711315838388,-336.97779636,0.00017962,2]
[320349149,1711315838398,-466.89,0.00018003,3]
[320349150,1711315838407,-233.45,0.00018003,3]
[320349151,1711315838416,-700.37,0.00018003,3]
[320349152,1711315838426,-500.0,0.00018011,2]
[320349153,1711315838435,-155.0,0.00018011,2]
[320349154,1711315838444,-234.91084827,0.00018011,2]
[320349155,1711315838455,-403.36554612,0.00018011,2]
[320349156,1711315838465,-155.0,0.00018011,2]
[320349157,1711315838475,-359.85697312,0.00018011,2]
[320349158,1711315838485,-335.24,0.00018011,2]
[320349159,1711315838494,-280.4640909,0.00018011,2]
[320349160,1711315838503,-155.0,0.00018011,2]
[320349161,1711315838514,-163.3317181,0.00018011,2]
[320349162,1711315838524,-452.3898537,0.00018011,2]
[320349163,1711315838533,-1573.94722004,0.00018012,2]
[320349164,1711315838542,-44757.34560218,0.00018013,2]
[320349166,1711315839957,-1330.06,0.00018013,2]
[320349167,1711315839978,-1263.31,0.00018013,2]
[320349168,1711315839994,-303.28850106,0.00018013,2]
[320349169,1711315840006,-2689.90736393,0.00018013,2]
[320349269,1711315842536,-22511.92528355,0.00018013,2]
[320349274,1711315842573,-33263.30000002,0.00018013,2]
[320349279,1711315842603,-3572.08152298,0.00018013,2]
[320349293,1711315845676,-375.86,0.00018003,3]
[320349294,1711315845687,-68691.25754995,0.00018013,2]
[320349295,1711315845699,-199340.55786727,0.00018013,2]
[320349296,1711315845858,-6049.35422547,0.00018013,2]
[320349298,1711316102709,424.83343976,0.00024962,30]
[320349299,1711316145151,945.0,0.00024962,30]
[320349300,1711316264645,160.0,0.00024962,30]
[320349301,1711316673422,-1000.0,0.00017319,3]
[320349302,1711316673450,-326.13,0.00018003,3]
[320349303,1711316673476,-163.07,0.00018003,3]
[320349304,1711316673502,-489.22,0.00018003,3]
[320349305,1711316746495,761.0,0.00024964,30]
[320349306,1711316763210,652.26,0.00018003,3]
[320349307,1711316769827,-190.91179034,0.0001351,2]
[320349308,1711316819207,1000.0,0.00016878,3]
[320349309,1711316898639,-166.67481098,0.00014159,2]
[320349310,1711316898668,-528.71,0.00015353,2]
[320349311,1711316932343,-10062.960581,0.00016735,2]
[320349312,1711316932371,-193.83,0.00016819,2]
[320349313,1711316932396,-300.0,0.00016877,2]
[320349314,1711316932421,-150.0,0.00016877,2]
[320349315,1711316932447,-13406.91281768,0.00016878,2]
[320349316,1711316946210,-1690.256,0.00015353,2]
[320349317,1711316954791,-25000.0,0.00015353,2]
[320349318,1711317010526,-15682.82495434,0.00015353,2]
[320349319,1711317023437,9317.17504566,0.00015353,2]
[320349344,1711317031655,-3203.65898451,0.00015353,2]
[320349354,1711317031758,-2531.60096167,0.00015353,2]
[320349355,1711317031886,-27320.6459625,0.00015353,2]
[320349356,1711317031896,-1000.0,0.00016886,2]
[320349357,1711317031905,-170.95,0.00016928,2]
[320349358,1711317031915,-1503.81,0.0001695,2]
[320349359,1711317031925,-200.02,0.00016959,2]
[320349360,1711317031934,-742.66847839,0.0001711,2]
[320349361,1711317031945,-250.0,0.0001727,2]
[320349363,1711317031954,-184.86,0.00017299,2]
[320349365,1711317031964,-172.97,0.00017431,2]
[320349367,1711317031973,-150.0,0.00017507,2]
[320349369,1711317031982,-238.58,0.00017534,2]
[320349371,1711317031991,-150.0,0.00017534,2]
[320349373,1711317032000,-254.9,0.00017534,2]
[320349375,1711317032010,-1288.794163,0.00017544,2]
[320349377,1711317032019,-528.71,0.00017617,2]
[320349381,1711317032028,-150.0,0.00017701,2]
[320349383,1711317032037,-409.02,0.00017799,2]
[320349385,1711317032046,-923.84,0.00017799,2]
[320349387,1711317032055,-923.84,0.00017799,2]
[320349389,1711317032065,-409.02,0.00017799,2]
[320349391,1711317032075,-407.37,0.00017799,2]
[320349393,1711317032085,-731.26,0.00017799,2]
[320349395,1711317032095,-305.044844,0.00017808,2]
[320349397,1711317032104,-3000.0,0.0001783,2]
[320349399,1711317032114,-162.3,0.00017861,2]
[320349401,1711317032124,-150.0,0.00017896,2]
[320349403,1711317032133,-347.22,0.000179,2]
[320349405,1711317032142,-150.0,0.000179,2]
[320349407,1711317032151,-919.77,0.000179,2]
[320349409,1711317032161,-499.99,0.000179,2]
[320349411,1711317032170,-151.82026198,0.000179,2]
[320349413,1711317032180,-10844.9664,0.00017913,2]
[320349415,1711317032189,-73547.0407,0.00017913,2]
[320349417,1711317032199,-1000.0,0.00017913,2]
[320349419,1711317032208,-151.82026197,0.00017941,2]
[320349421,1711317032217,-83245.92350422,0.00018,2]
[320349424,1711317032227,-481.22181973,0.00018,2]
[320349426,1711317032236,-429.68080194,0.00018011,2]
[320349427,1711317032246,-391.9714932,0.00018012,2]
[320349430,1711317032257,-450746.61357865,0.00018013,2]
[320349432,1711317032271,-491.25,0.00018013,2]
[320349433,1711317032309,-73511.27665509,0.00018013,2]
[320349435,1711317037661,-250.0,0.00016921,2]
[320349436,1711317037671,-250.0,0.00018013,2]
[320349437,1711317037682,-540.90981559,0.00018013,2]
[320349438,1711317037765,-11004.98181409,0.00018013,2]
[320349439,1711317037791,-364.89736001,0.00018013,2]
[320349440,1711317037808,-529.82133345,0.00018013,2]
[320349455,1711317039691,-314.51261002,0.0001797,2]
[320349456,1711317039701,-6326.68738999,0.00018013,2]
[320349457,1711317039839,-644.08472678,0.00018013,2]
[320349458,1711317039851,-3307.14203594,0.00018013,2]
[320349459,1711317039895,-153355.67466205,0.00018013,2]
[320349460,1711317039905,-151.82026197,0.0001807,2]
[320349461,1711317039914,-150.0,0.0001809,2]
[320349462,1711317039923,-875.0,0.000181,2]
[320349463,1711317039932,-260.89997386,0.00018197,2]
[320349464,1711317039941,-151.82026197,0.00018198,2]
[320349465,1711317039951,-457.0,0.00018219,2]
[320349466,1711317039960,-536.0,0.00018219,2]
[320349467,1711317039969,-491.238,0.00018219,2]
[320349468,1711317039978,-4607.951,0.00018219,2]
[320349469,1711317039988,-4765.0,0.00018219,2]
[320349470,1711317039997,-152.582,0.00018219,2]
[320349471,1711317040006,-165.265,0.00018219,2]
[320349472,1711317040015,-150.0,0.00018285,2]
[320349473,1711317040025,-1356.95233937,0.0001829,2]
[320349474,1711317040034,-151.82026197,0.00018326,2]
[320349475,1711317040043,-151.82026197,0.00018454,2]
[320349476,1711317040052,-150.0,0.00018479,2]
[320349477,1711317040061,-260.89997386,0.00018481,2]
[320349478,1711317040071,-152.00641088,0.00018529,2]
[320349479,1711317040080,-152.79300413,0.00018577,2]
[320349480,1711317040090,-151.82026197,0.00018583,2]
[320349481,1711317040100,-154.021709,0.00018583,2]
[320349482,1711317040109,-170.18445164,0.00018587,2]
[320349483,1711317040118,-212.91011024,0.00018591,2]
[320349484,1711317040128,-170.18445164,0.00018596,2]
[320349485,1711317040137,-648.67266889,0.00018607,2]
[320349486,1711317040146,-150.94788018,0.00018622,2]
[320349487,1711317040155,-196.48090499,0.00018628,2]
[320349488,1711317040165,-305.044844,0.0001863,2]
[320349490,1711317040174,-415.37,0.0001863,2]
[320349492,1711317040183,-161.29,0.0001863,2]
[320349493,1711317040192,-399.66,0.0001863,2]
[320349495,1711317040201,-150.0,0.00018674,2]
[320349497,1711317040210,-151.82026197,0.00018711,2]
[320349499,1711317040219,-260.89997386,0.00018765,2]
[320349501,1711317040228,-152.00641088,0.00018797,2]
[320349502,1711317040238,-150.94788018,0.00018812,2]
[320349504,1711317040247,-151.82026197,0.00018839,2]
[320349506,1711317040256,-151.68842336,0.00018853,2]
[320349508,1711317040265,-150.94788018,0.00018867,2]
[320349509,1711317040275,-150.0,0.00018868,2]
[320349511,1711317040284,-196.48090499,0.0001887,2]
[320349513,1711317040293,-196.48090499,0.00018889,2]
[320349515,1711317040303,-200.0,0.00018911,2]
[320349517,1711317040312,-160.07391968,0.00018915,2]
[320349519,1711317040321,-619.69342557,0.00018933,2]
[320349520,1711317040331,-154.021709,0.00018962,2]
[320349522,1711317040340,-154.97363183,0.00018964,2]
[320349524,1711317040349,-151.82026197,0.00018967,2]
[320349526,1711317040357,-212.91011024,0.0001897,2]
[320349528,1711317040367,-196.48090499,0.00018979,2]
[320349530,1711317040376,-152.00641088,0.00018988,2]
[320349531,1711317040385,-1000.0,0.00018997,2]
[320349533,1711317040394,-152.00641088,0.00018998,2]
[320349535,1711317040403,-1467.60065329,0.00019,2]
[320349537,1711317040412,-297.54342083,0.00019,2]
[320349539,1711317040421,-231.93311612,0.00019,2]
[320349541,1711317040430,-1250.0,0.00019,3]
[320349543,1711317040440,-1250.0,0.00019,3]
[320349544,1711317040449,-150.94788018,0.00019014,2]
[320349546,1711317040458,-260.89997386,0.00019048,2]
[320349547,1711317040468,-151.68842336,0.00019049,2]
[320349548,1711317040477,-150.94788018,0.00019056,2]
[320349549,1711317040486,-648.67266889,0.00019061,2]
[320349550,1711317040495,-150.0,0.00019063,2]
[320349551,1711317040505,-1005.01036584,0.00019078,2]
[320349552,1711317040514,-151.68842336,0.00019078,2]
[320349553,1711317040523,-153.87331582,0.0001908,2]
[320349554,1711317040532,-200.0,0.00019093,2]
[320349555,1711317040543,-151.82026197,0.00019096,2]
[320349556,1711317040552,-151.68842336,0.00019099,2]
[320349557,1711317040562,-175.96604202,0.00019108,2]
[320349558,1711317040571,-154.68215311,0.00019117,2]
[320349559,1711317040582,-166.64686583,0.00019125,2]
[320349560,1711317040592,-153.87331582,0.00019125,2]
[320349561,1711317040602,-212.91011024,0.00019134,2]
[320349562,1711317040612,-212.91011024,0.00019135,2]
[320349563,1711317040621,-200.0,0.00019161,2]
[320349564,1711317040631,-212.91011024,0.00019172,2]
[320349565,1711317040641,-208.01803239,0.00019177,2]
[320349566,1711317040650,-173.42568555,0.00019177,2]
[320349567,1711317040661,-582.0,0.00019178,2]
[320349568,1711317040670,-500.0,0.00019178,2]
[320349569,1711317040680,-500.0,0.00019178,2]
[320349570,1711317040689,-164.7679351,0.00019178,2]
[320349571,1711317040698,-500.0,0.00019178,2]
[320349572,1711317040707,-500.0,0.00019178,2]
[320349573,1711317040717,-500.0,0.00019178,2]
[320349574,1711317040727,-196.32403422,0.00019178,2]
[320349575,1711317040736,-500.0,0.00019178,2]
[320349576,1711317040745,-500.0,0.00019178,2]
[320349577,1711317040754,-500.0,0.00019178,2]
[320349578,1711317040765,-500.0,0.00019178,2]
[320349579,1711317040775,-384.54254136,0.00019178,2]
[320349580,1711317041045,-500.0,0.00019178,2]
[320349581,1711317041055,-500.0,0.00019178,2]
[320349582,1711317041064,-500.0,0.00019178,2]
[320349583,1711317041074,-500.0,0.00019178,2]
[320349584,1711317041083,-457.61665245,0.00019178,2]
[320349585,1711317041093,-500.0,0.00019178,2]
[320349586,1711317041102,-500.0,0.00019178,2]
[320349587,1711317041112,-500.0,0.00019178,2]
[320349588,1711317041122,-500.0,0.00019178,2]
[320349589,1711317041131,-500.0,0.00019178,2]
[320349590,1711317041141,-500.0,0.00019178,2]
[320349591,1711317041151,-500.0,0.00019178,2]
[320349592,1711317041160,-500.0,0.00019178,2]
[320349593,1711317041171,-446.5547951,0.00019178,2]
[320349594,1711317041181,-97.93027415,0.00019178,2]
[320349595,1711317041198,-402.06972585,0.00019178,2]
[320349596,1711317041207,-242.85395871,0.00019178,2]
[320349597,1711317041221,-257.42016206,0.00019178,2]
[320349598,1711317041231,-500.0,0.00019178,2]
[320349599,1711317041240,-500.0,0.00019178,2]
[320349600,1711317041251,-500.0,0.00019178,2]
[320349601,1711317041262,-500.0,0.00019178,2]
[320349602,1711317041272,-500.0,0.00019178,2]
[320349603,1711317041282,-500.0,0.00019178,2]
[320349604,1711317041291,-500.0,0.00019178,2]
[320349605,1711317041300,-500.0,0.00019178,2]
[320349606,1711317041309,-307.46014093,0.00019178,2]
[320349607,1711317041318,-500.0,0.00019178,2]
[320349608,1711317041327,-500.0,0.00019178,2]
[320349609,1711317041337,-175.06107412,0.00019178,2]
[320349610,1711317041347,-500.0,0.00019178,2]
[320349611,1711317041356,-500.0,0.00019178,2]
[320349612,1711317041365,-500.0,0.00019178,2]
[320349613,1711317041374,-437.4525346,0.00019178,2]
[320349614,1711317041384,-500.0,0.00019178,2]
[320349615,1711317041393,-500.0,0.00019178,2]
[320349616,1711317041402,-500.0,0.00019178,2]
[320349617,1711317041412,-500.0,0.00019178,2]
[320349618,1711317041421,-500.0,0.00019178,2]
[320349619,1711317041430,-501.05975854,0.00019178,2]
[320349620,1711317041441,-36.52057685,0.00019178,2]
[320349621,1711317041456,-463.47942315,0.00019178,2]
[320349622,1711317041466,-500.0,0.00019178,2]
[320349623,1711317041475,-171.05897584,0.00019178,2]
[320349624,1711317041485,-500.0,0.00019178,2]
[320349625,1711317041494,-114.02786716,0.00019178,2]
[320349626,1711317041508,-385.97213284,0.00019178,2]
[320349627,1711317041518,-500.0,0.00019178,2]